Workbook

Sheet Sheet1
A1: SAE # Thread Sizes
A3: SAE No | B3: Nominal Tube Size OD” | C3: Thread Size” | D3: TPI | E3: OD mm | F3: Pitch Dia E” | G3: E mm | H3: NPT Size”
A4: 2 | B4: 0.125 | C4: 0.3125 | D4: 24 | E4: =C4*25.4 -> 7.9375 | F4: =C4-(0.64952/D4) -> 0.2854366667 | G4: =F4*25.4 -> 7.250091333 | H4: 1/8’’ – 27
A5: 3 | B5: 0.1875 | C5: 0.375 | D5: 24 | E5: =C5*25.4 -> 9.525 | F5: =C5-(0.64952/D5) -> 0.3479366667 | G5: =F5*25.4 -> 8.837591333
A6: 4 | B6: 0.25 | C6: 0.4375 | D6: 20 | E6: 11.1125 | F6: =C6-(0.64952/D6) -> 0.405024 | G6: 10.2876096 | H6: 1/4’’ – 18
A7: 5 | B7: 0.3125 | C7: 0.5 | D7: 20 | E7: 12.7 | F7: =C7-(0.64952/D7) -> 0.467524 | G7: 11.8751096
A8: 6 | B8: 0.375 | C8: 0.5625 | D8: 18 | E8: 14.2875 | F8: =C8-(0.64952/D8) -> 0.5264155556 | G8: 13.37095511 | H8: 3/8’’ – 18
A9: 8 | B9: 0.5 | C9: 0.75 | D9: 16 | E9: 19.05 | F9: =C9-(0.64952/D9) -> 0.709405 | G9: 18.018887 | H9: 1/2’’ – 14
A10: 10 | B10: 0.625 | C10: 0.875 | D10: 14 | E10: 22.225 | F10: =C10-(0.64952/D10) -> 0.8286057143 | G10: 21.04658514
A11: 12 | B11: 0.75 | C11: 1.0625 | D11: 12 | E11: 26.9875 | F11: =C11-(0.64952/D11) -> 1.008373333 | G11: 25.61268267 | H11: 3/4’’ – 14
A12: 14 | B12: 0.875 | C12: 1.1875 | D12: 12 | E12: 30.1625 | F12: =C12-(0.64952/D12) -> 1.133373333 | G12: 28.78768267
A13: 16 | B13: 1 | C13: 1.3125 | D13: 12 | E13: 33.3375 | F13: =C13-(0.64952/D13) -> 1.258373333 | G13: 31.96268267 | H13: 1’’– 11.5
A14: 20 | B14: 1.25 | C14: 1.625 | D14: 12 | E14: 41.275 | F14: =C14-(0.64952/D14) -> 1.570873333 | G14: 39.90018267 | H14: 1 1/4’’– 11.5
A15: 24 | B15: 1.5 | C15: 1.875 | D15: 12 | E15: 47.625 | F15: =C15-(0.64952/D15) -> 1.820873333 | G15: 46.25018267 | H15: 1 1/2’’– 11.5
A16: 32 | B16: 2 | C16: 2.5 | D16: 12 | E16: 63.5 | F16: =C16-(0.64952/D16) -> 2.445873333 | G16: 62.12518267 | H16: 2’’– 11.5
B18: E=D-(0.64952/n)

Sheet Sheet2

Sheet Sheet3
